Cogmind - Beta 13 @@@ ROGUE MODE // 2024.04.08 @ 21:10:25 Player: Eggywontgrow Result: Destroyed by D-53 Grenadier with Mini Grenade Launcher Performance ------------- Evolutions (0) 0 Regions Visited (2) 400 Robots Destroyed (2) 10 Value Destroyed (81) 81 Prototype IDs (0) 0 Alien Tech Used (0) 0 Bonus (0) 0 TOTAL SCORE: 491 Bonus ------- None Cogmind --------- Core Integrity 0/250 Matter 60/450 Energy 100/100 System Corruption 0% Temperature Cool (0) Movement Core (250) Ox4 Location -10/Mines Parts ------- > --- POWER (1) -------- (None) > --- PROPULSION (2) --- (None) > --- UTILITY (2) ------ Medium Storage Unit Large Matter Pod > --- WEAPON (2) ------- (None) > --- INVENTORY (10) --- Ion Engine Aluminum Leg Aluminum Leg Aluminum Leg Aluminum Leg EM Pulse Gun Medium Laser Light Assault Rifle Grenade Launcher Rocket Launcher Peak State ------------ > --- POWER ------------ Ion Engine > --- PROPULSION ------- Wheel Wheel > --- UTILITY ---------- Medium Storage Unit Large Matter Pod > --- WEAPON ----------- Assault Rifle Light Assault Rifle > --- INVENTORY -------- Ion Engine Aluminum Leg Aluminum Leg Aluminum Leg Aluminum Leg EM Pulse Gun Light Assault Rifle Grenade Launcher Rocket Launcher [Rating: 8] Favorites ----------- Power Ion Engine Engine Ion Engine Propulsion Wheel Leg Aluminum Leg Wheel Wheel Utility Small Storage Unit Storage Small Storage Unit Weapon Assault Rifle Ballistic Gun Assault Rifle Build | -11 -10 -10 ------- Run | Yrd Mat Min Slots Evolved . | . . . Power . | . . . Propulsion . | . . . Utility . | . . . Weapon . | . . . Parts Attached 14 | 7 4 3 Power 2 | 2 . . Engine 2 | 2 . . Core . | . . . Reactor . | . . . Propulsion 6 | 4 . 2 Treads . | . . . Leg 3 | 2 . 1 Wheel 3 | 2 . 1 Hover . | . . . Flight . | . . . Utility 4 | 1 2 1 Device . | . . . Storage 4 | 1 2 1 Processor . | . . . Hackware . | . . . Protection . | . . . Artifact . | . . . Weapon 2 | . 2 . Energy Gun . | . . . Energy Cannon . | . . . Ballistic Gun 2 | . 2 . Ballistic Cannon . | . . . Launcher . | . . . Special Weapon . | . . . Impact Weapon . | . . . Slashing Weapon . | . . . Piercing Weapon . | . . . Special Melee Weapon . | . . . Unidentified Prototypes . | . . . Parts Lost 5 | . . 5 Power 1 | . . 1 Propulsion 2 | . . 2 Utility . | . . . Weapon 2 | . . 2 Highest Loss Streak 5 | . . 5 To Critical Strikes . | . . . Average Slot Usage (%) 92 | . 96 87 Engine 13 | . 14 12 Wheel 27 | . 28 26 Storage 26 | . 24 28 Ballistic Gun 24 | . 28 20 Naked Turns . | . . . Heaviest Build 21 | 10 16 21 Greatest Support 20 | 20 20 20 Greatest Overweight (x) 1 | 1 . 1 Average Overweight (x) . | . . . Largest Inventory Capacity 10 | 8 8 10 Average Capacity 7 | 6 8 8 Most Carried 10 | 6 8 10 Average Carried 6 | 3 5 8 Final Capacity 10 | 8 8 10 Final Carried 10 | 6 8 10 Class Distribution -------------------- 100% | Mutant Dominant Class ---------------- Mutant | -10/Materials Mutant | -10/Mines Resources | -11 -10 -10 ----------- Run | Yrd Mat Min Matter Collected 111 | 95 . 16 Remotely . | . . . Salvage Created 89 | . 89 . Parts 3 | . 3 . Haulers Intercepted . | . . . Recyclers Shooed . | . . . Parts Field Recycled . | . . . Retrieved Matter . | . . . Parts Self-Destructed . | . . . Prevented . | . . . Kills | -11 -10 -10 ------- Run | Yrd Mat Min Combat Hostiles Destroyed 2 | . 2 . Guns 2 | . 2 . Classes Destroyed 1 | . 1 . Grunt 2 | . 2 . Best Kill Streak 2 | . 2 . Combat Bots Only 2 | . 2 . Max Kills in Single Turn 1 | . 1 . Gunslinging . | . . . Exploded . | . . . Melee . | . . . Uniques/NPCs Destroyed . | . . . Combat | -11 -10 -10 -------- Run | Yrd Mat Min Hostile Shots Fired 26 | . 13 13 Missed 4 | . 3 1 Damage Taken 638 | . 118 520 Core 268 | . 25 243 Absorbed by Shields . | . . . Core Remaining (%) 100 | 100 . . Volleys Fired 9 | . 9 . Largest 2 | . 2 . Hottest 40 | . 40 . Shots Fired 18 | . 18 . Gun 18 | . 18 . Cannon . | . . . Launcher . | . . . Special . | . . . Kinetic 18 | . 18 . Thermal . | . . . Explosive . | . . . Electromagnetic . | . . . Robot Hit Streak 10 | . 10 . Robot Miss Streak 1 | . 1 . Penetration Max . | . . . Secondary Targets . | . . . Shots Hit Robots 15 | . 15 . Core Hits 5 | . 5 . Critical Kills . | . . . Critical Parts Destroyed . | . . . Critical Strikes . | . . . Melee Attacks . | . . . Impact . | . . . Slashing . | . . . Piercing . | . . . Sneak Attacks . | . . . Combat Hostiles . | . . . Follow-up Attacks . | . . . Damage Inflicted 161 | . 161 . Guns 161 | . 161 . Cannons . | . . . Explosions . | . . . Melee . | . . . Ramming . | . . . Kinetic 161 | . 161 . Thermal . | . . . Explosive . | . . . Electromagnetic . | . . . Impact . | . . . Slashing . | . . . Piercing . | . . . Highest Corruption . | . . . Average Corruption . | . . . Corruption Purged . | . . . Corruption Blocked . | . . . Overload Shots . | . . . Overflow Damage . | . . . Projectiles . | . . . Explosions . | . . . Melee . | . . . Knockbacks . | . . . Impact . | . . . Kinetic . | . . . Secondary . | . . . Self-Inflicted Damage . | . . . Shots . | . . . Rammed . | . . . Targets Rammed . | . . . Kicked . | . . . Crushed . | . . . Highest Temperature 12 | . 12 . Average Temperature 7 | . 7 . Received Heat Transfer 66 | . 66 . Siege Activations . | . . . Robots Corrupted . | . . . Combat Hostiles . | . . . Parts Fried . | . . . Impact Corruptions . | . . . Robots Melted . | . . . Combat Hostiles . | . . . Parts Melted . | . . . Heat Transferred . | . . . Parts Sabotaged . | . . . Parts Stolen . | . . . Parts Stripped . | . . . Power Chain Reactions . | . . . Alert | -11 -10 -10 ------- Run | Yrd Mat Min Peak Influence 65 | . 65 25 Initial 25 | . . 25 Average 15 | . 21 19 Maximum Alert Level . | . . . Low Security (%) 100 | 100 100 100 Level 1 . | . . . Level 2 . | . . . Level 3 . | . . . Level 4 . | . . . Level 5 . | . . . High Security . | . . . Max Security . | . . . Squads Dispatched . | . . . Investigation . | . . . Extermination . | . . . Reinforcement . | . . . Assault . | . . . Garrison . | . . . Intercept . | . . . Searches Triggered . | . . . Construction Impeded . | . . . Haulers Reinforced . | . . . Active Scanning Responses . | . . . Cargo Convoy Interrupts . | . . . Stealth | -11 -10 -10 --------- Run | Yrd Mat Min Distress Signals . | . . . Communications Jammed . | . . . Distress Signals . | . . . Times Spotted 5 | . 3 2 Peak Tracking Total 2 | . 2 2 Tactical Retreats . | . . . Traps | -11 -10 -10 ------- Run | Yrd Mat Min Traps Triggered . | . . . Indirectly . | . . . Trap Hack Attempts . | . . . Triggered . | . . . Disarmed . | . . . Reprogrammed . | . . . Reused . | . . . Traps Extracted . | . . . Installed . | . . . Triggered . | . . . Machines | -11 -10 -10 ---------- Run | Yrd Mat Min Machines Disabled . | . . . Max in Single Turn . | . . . Machines Repaired . | . . . Machines Dismantled . | . . . Machines Sabotaged . | . . . Overloaded Fab Kills . | . . . Hacking | -11 -10 -10 --------- Run | Yrd Mat Min Machines Accessed 1 | . 1 . Terminals 1 | . 1 . Fabricators . | . . . Repair Stations . | . . . Recycling Units . | . . . Scanalyzers . | . . . Garrison Access . | . . . Total Hacks 1 | . 1 . Successful 1 | . 1 . Failed . | . . . Catastrophic . | . . . Database Lockouts . | . . . Manual 1 | . 1 . Terminals 1 | . 1 . Fabricators . | . . . Repair Stations . | . . . Recycling Units . | . . . Scanalyzers . | . . . Garrison Access . | . . . Terminal Hacks 1 | . 1 . Alert Level 1 | . 1 . Fabricator Hacks . | . . . Repair Station Hacks . | . . . Recycling Unit Hacks . | . . . Scanalyzer . | . . . Garrison Access Hacks . | . . . Unauthorized Hacks . | . . . Terminals . | . . . Fabricators . | . . . Repair Stations . | . . . Recycling Units . | . . . Scanalyzers . | . . . Garrison Access . | . . . Data Cores Recovered . | . . . Used . | . . . Hacking Detections 1 | . 1 . Full Trace Events . | . . . Feedback Events . | . . . Feedback Blocked . | . . . Robot Schematics Acquired . | . . . Robots Built . | . . . Authchips . | . . . Time . | . . . Total Robot Build Rating . | . . . Part Schematics Acquired . | . . . Parts Built . | . . . Authchips . | . . . Time . | . . . Total Part Build Rating . | . . . Parts Repaired . | . . . Time . | . . . Parts Recycled . | . . . Recycled Matter . | . . . Retrieved Matter . | . . . Retrieved Components . | . . . Parts Scanalyzed . | . . . Part Schematics Acquired . | . . . Parts Damaged . | . . . Bothacking | -11 -10 -10 ------------ Run | Yrd Mat Min Used RIF Installer . | . . . Robots Hacked . | . . . Non-combat . | . . . Combat . | . . . Robot Hacks Applied . | . . . Relay Couplers Released . | . . . Fabnet Peak Effective % . | . . . Robots Rewired . | . . . Allies Hacked . | . . . Hacks Repelled . | . . . Allies | -11 -10 -10 -------- Run | Yrd Mat Min Total Allies . | . . . Largest Group . | . . . Highest-Rated Group . | . . . Highest-Rated Ally . | . . . Total Orders . | . . . Ally Attacks . | . . . Total Damage . | . . . Kills . | . . . Allies Corrupted . | . . . Allies Melted . | . . . Intel | -11 -10 -10 ------- Run | Yrd Mat Min Robot Analysis Total . | . . . Derelict Logs Recovered . | . . . Drone Launches . | . . . Drone Recoveries . | . . . Exploration | -11 -10 -10 ------------- Run | Yrd Mat Min Turns Passed 212 | 59 82 71 Spaces Moved 175 | 42 58 75 Core 9 | 9 . . Treads . | . . . Legs 16 | 16 . . Wheels 150 | 17 58 75 Hover . | . . . Flight . | . . . Fastest Speed 50 | 50 80 80 Average Speed 85 | 95 80 83 Slowest Speed 120 | 120 80 95 Overloaded Moves . | . . . Propulsion Burnouts . | . . . Robots Hopped . | . . . Cave-ins Triggered . | . . . Exploration Rate (%) 11 | 3 11 21 Regions Visited 2 Branch Regions 1 Pre-discovered Areas . | . . . Known Exits Taken . | . . . Unknown Exits Taken 2 | 1 1 . Scrap Searched 1 | . . 1 Spaces Dug . | . . . Terrain Destroyed . | . . . Melee . | . . . Projectile . | . . . AOE . | . . . Terrain Rammed . | . . . Walls Destroyed . | . . . Machines Disabled . | . . . Actions | -11 -10 -10 --------- Run | Yrd Mat Min Total 218 | 58 77 83 Wait . | . . . Move 173 | 41 57 75 Hop . | . . . Pick Up 19 | 10 6 3 Fast Attach . | . . . Attach 7 | 4 3 . Detach . | . . . Swap 7 | 3 1 3 Drop 3 | . 1 2 Fire 9 | . 9 . Melee . | . . . Ram . | . . . Kick . | . . . Crush . | . . . Escape Stasis . | . . . Rewire . | . . . Trap . | . . . Miscellaneous . | . . . Route ------- -11/Scrapyard -10/Materials -10/Mines History --------- Turn | Location | Event 9 | -11/Scrapyard | Discovered new exit (range 15) 60 | -11/Scrapyard | Entered Materials 90 | -10/Materials | Discovered new exit (range 16) 142 | -10/Materials | Entered Mines 149 | -10/Mines | Received a Rocket Launcher from a helpful Derelict 167 | -10/Mines | Assembled infested the area 198 | -10/Mines | Core integrity fell below 50% 209 | -10/Mines | Core integrity fell below 20% 213 | -10/Mines | Destroyed by D-53 Grenadier with Mini Grenade Launcher Last Messages --------------- 00167_ ALERT: Infestation in the mines, dispatching Demolisher response squad. 00182_ Searching scrap... 00182_ Found Med. Laser. 00182_ Found Med. Storage Unit. 00182_ Found EM Pulse Gun. 00182_ Found 16 Matter. 00183_ Acquired 16 matter. 00184_ Dropped Sml. Storage Unit. 00186_ Acquired EM Pulse Gun. 00189_ C-30 ARC bursts open, deploying its payload. 00189_ D-53 Grenadier unfolds itself. 00189_ Acquired Med. Laser. 00197_ Lgt. Assault Rifle destroyed. 00197_ Assault Rifle destroyed. 00200_ The unstable cave ceiling collapses. 00205_ Ion Engine destroyed. 00205_ Wheel destroyed. 00209_ The unstable cave ceiling collapses. 00213_ Wheel destroyed. Map ----- +----------------------------------------------------+ | ????????????????????????? #????????? | | ????????????????????????? #????????? | | ?????????????????????#### #????????? | | ?????????????????##### %" #????????? | | ?????????????????? ?????????? | | ??????????????????## ##?????????? | | ?????????????????## ##????????? | | ?????????????????# #????????? | | ????????########### ##???????? | | ????????# ! # #???????? | | ????????# #### #### # # #???????? | | ???????????### #?# # #?###????? | | ???????????# #??# # ## ##???? | | ???????????# ###?## # #???? | | ???????????# #???# ## #???? | | ???????????# #???# # #???? | | ???????????# #???## d #???? | | ???????????# #????# d #???? | | ???????????# #???## # #????? | | ???????????# #???# ##???? | | ???????????# #???# #???? | | ???????????# #???# ## #???? | | ???????????# #???## ## #???? | | ???????????# #????####g #???? | | ???????????# #???????#g ###???? | | ??????????## #???????#g $@ ##????? | | ?????????## ##??????##### ##?????? | | ?????????# ###????????#####??????? | | ?????????# ##??????##??????????? | | ?????????# #?????# #??????????? | | ?????????# #???? #??????????? | | ????????## ##?### #???????????? | | ????????# ##?## #????????????? | | ????##### ##### #????????????? | | ?# #????????????? | | ?## ! #????????????? | | ??################# #????????????? | | ??????????????????# #????????????? | | ??????????????????## ##????????????? | | ????????????????????###?????????????? | | ????????????????????????????????????? | | ????????????????????????????????????? | | | | | | | | | | | | | | | | | +----------------------------------------------------+ Best States ------------- Heat Dissipation 25 Energy Generation 10 Energy Capacity 250 Matter Stores 175 Matter Capacity 450 Sight Range 16 Terrain Scan Density 10 Evasion (%) 55 Item Schematics ----------------- None Robot Schematics ------------------ None Fabricated ------------ Nothing Alien Tech Used ----------------- None Achievements -------------- None Challenges ------------ None Game ------ Seed CoilSupercompositeMatter Manual? 0 Play Time 00:12:22 Cumulative 4.2 hours Start 2024.04.08 @ 20:57:09 End 2024.04.08 @ 21:10:25 Sessions 1 Manual Loads 0 Difficulty Rogue Special Mode None Game No. 5 Rogue 5 Adventurer 0 Explorer 0 Win Type - Total 0 Types 0/0/0/0/0/0/0/0/0 Lore% 0 Gallery% 7 Achievement% 6 Wizard Run 0 Options --------- Layout 0 ASCII 0 Keyboard 0 Movement Mouse Keybinds 0 Fullscreen 2 Font 24/Smallcaps Map View 38x25 Zoom Use 99% Tactical HUD 1 Map Filters NONE Filters NONE Steam 1 RUN: 15063ce4-34f2-42f4-8971-07a2d58469e4